fUST/lending_fUST_20251115
["ID","MTS","AMOUNT","RATE_DAILY","PERIOD"]
[394016415,1763191404724,215.85310535,0.0002514,20]
[394016426,1763191630143,-157.46832248,0.000235,2]
[394016427,1763191630165,-150.0,0.00023561,2]
[394016428,1763191630184,-145.60415831,0.00024151,2]
[394016431,1763191718405,10000.01,0.0002,2]
[394016432,1763191718428,8196.99,0.0002,2]
[394016468,1763191831716,-289.9355,0.00023433,2]
[394016479,1763191831805,-973.57,0.00023433,2]
[394016481,1763191831817,-1112.14381274,0.00023433,2]
[394016483,1763191831827,-251.25739324,0.00023433,2]
[394016498,1763191837699,-2373.09329402,0.00023433,2]
[394016499,1763191837708,-5000.0,0.0002367,2]
[394016500,1763191837717,-5000.0,0.00023909,2]
[394016501,1763191837726,-5709.39193215,0.00024073,2]
[394016502,1763191837735,-385.0,0.0002415,2]
[394016503,1763191837743,-300.0,0.00024151,2]
[394016504,1763191837752,-150.0,0.00024152,2]
[394016505,1763191837761,-300.0,0.00024152,20]
[394016506,1763191837771,-300.0,0.00024152,20]
[394016507,1763191837780,-300.0,0.00024152,20]
[394016508,1763191837790,-300.0,0.00024152,20]
[394016509,1763191837799,-300.0,0.00024152,20]
[394016510,1763191837807,-300.0,0.00024152,20]
[394016511,1763191837818,-300.0,0.00024152,20]
[394016512,1763191837827,-300.0,0.00024152,20]
[394016513,1763191837836,-300.0,0.00024152,20]
[394016514,1763191837845,-300.0,0.00024152,20]
[394016515,1763191837854,-300.0,0.00024152,20]
[394016516,1763191837863,-300.0,0.00024152,20]
[394016517,1763191837872,-9801.66618924,0.00024152,2]
[394016518,1763191837881,-503.17034432,0.00024173,2]
[394016519,1763191837890,-500.0,0.00024173,2]
[394016520,1763191837899,-209.47526039,0.00024173,2]
[394016521,1763191837907,-1121.0,0.000245,5]
[394016522,1763191837915,-300.0,0.00024634,20]
[394016523,1763191837925,-300.0,0.00024634,20]
[394016524,1763191837934,-300.0,0.00024634,20]
[394016525,1763191837944,-300.0,0.00024634,20]
[394016526,1763191837954,-300.0,0.00024634,20]
[394016527,1763191837963,-300.0,0.00024634,20]
[394016528,1763191837972,-300.0,0.00024634,20]
[394016529,1763191837981,-300.0,0.00024634,20]
[394016530,1763191837990,-300.0,0.00024634,20]
[394016531,1763191837999,-500.0,0.00024973,2]
[394016532,1763191838008,-426.07856633,0.00024973,2]
[394016533,1763191838017,-500.0,0.00024973,2]
[394016534,1763191838027,-500.0,0.00024973,2]
[394016535,1763191838036,-500.0,0.00024973,2]
[394016536,1763191838045,-522.104074,0.00024973,2]
[394016537,1763191838055,-500.0,0.00024973,2]
[394016538,1763191838065,-500.0,0.00024998,2]
[394016539,1763191838074,-500.0,0.00024998,2]
[394016540,1763191838254,-500.0,0.00024998,2]
[394016541,1763191838274,-500.0,0.00024998,2]
[394016542,1763191838284,-500.0,0.00024998,2]
[394016543,1763191838294,-500.0,0.00024998,2]
[394016544,1763191838303,-500.0,0.00024998,2]
[394016545,1763191838312,-500.0,0.00024998,2]
[394016546,1763191838321,-156.38887449,0.00024998,2]
[394016547,1763191838331,-191.00807897,0.00024998,2]
[394016548,1763191838340,-500.0,0.00024998,2]
[394016549,1763191838349,-500.0,0.00024998,2]
[394016550,1763191838359,-500.0,0.00024998,2]
[394016551,1763191838367,-500.0,0.00024998,2]
[394016552,1763191838377,-500.0,0.00024998,2]
[394016553,1763191838385,-500.0,0.00024998,2]
[394016554,1763191838395,-500.0,0.00024998,2]
[394016555,1763191838404,-500.0,0.00024998,2]
[394016556,1763191838414,-500.0,0.00024998,2]
[394016557,1763191838423,-490.89818016,0.00024998,2]
[394016558,1763191838432,-500.0,0.00024998,2]
[394016559,1763191838442,-500.0,0.00024998,2]
[394016560,1763191838451,-500.0,0.00024998,2]
[394016561,1763191838461,-500.0,0.00024998,2]
[394016562,1763191838470,-500.0,0.00024998,2]
[394016563,1763191838480,-650.11979144,0.00024998,2]
[394016564,1763191838489,-500.0,0.00024998,2]
[394016565,1763191838498,-500.0,0.00024998,2]
[394016566,1763191838508,-500.0,0.00024998,2]
[394016567,1763191838517,-500.0,0.00024998,2]
[394016568,1763191838526,-500.0,0.00024998,2]
[394016569,1763191838535,-386.74070778,0.00024998,2]
[394016570,1763191838545,-500.0,0.00024998,2]
[394016571,1763191838555,-500.0,0.00024998,2]
[394016572,1763191838565,-500.0,0.00024998,2]
[394016573,1763191838575,-500.0,0.00024998,2]
[394016574,1763191838585,-500.0,0.00024998,2]
[394016575,1763191838595,-500.0,0.00024998,2]
[394016576,1763191838605,-266.03819665,0.00024998,2]
[394016577,1763191838615,-2812.0,0.00025,2]
[394016578,1763191838624,-300.0,0.0002514,20]
[394016579,1763191838633,-500.0,0.00025786,2]
[394016580,1763191838642,-177.0,0.00026152,2]
[394016581,1763191838651,-420.0,0.00026186,2]
[394016582,1763191838662,-500.0,0.00026281,2]
[394016583,1763191838671,-722.44109687,0.00026282,2]
[394016584,1763191838681,-306.40668607,0.00026282,2]
[394016585,1763191838690,-489.67163487,0.00026282,2]
[394016586,1763191838699,-426.55449662,0.00026282,2]
[394016587,1763191838709,-306.11079948,0.00026282,2]
[394016588,1763191838718,-489.67133897,0.00026282,2]
[394016589,1763191838727,-306.17391632,0.00026282,2]
[394016590,1763191838736,-550.2131754,0.00026282,2]
[394016591,1763191838746,-244.18146909,0.00026282,2]
[394016592,1763191838755,-305.83077339,0.00026282,2]
[394016593,1763191838764,-305.99007575,0.00026282,2]
[394016594,1763191838774,-409.9428683,0.00026282,2]
[394016595,1763191838783,-1000.0,0.00026334,2]
[394016596,1763191838792,-160.0,0.000266,2]
[394016597,1763191838801,-258.20801078,0.00026658,2]
[394016598,1763191838810,-151.0,0.00026658,2]
[394016599,1763191838820,-151.0,0.00026658,2]
[394016600,1763191838829,-151.0,0.00026658,2]
[394016601,1763191838838,-151.0,0.00026658,2]
[394016602,1763191838847,-151.0,0.00026658,2]
[394016603,1763191838857,-151.0,0.00026658,2]
[394016604,1763191838865,-151.0,0.00026658,2]
[394016605,1763191838874,-151.0,0.00026658,2]
[394016606,1763191838884,-301.99999997,0.00026658,2]
[394016607,1763191838893,-167.968376,0.00026676,2]
[394016608,1763191838902,-871.87267346,0.00026882,2]
[394016609,1763191838912,-260.0,0.00027148,2]
[394016610,1763191838921,-500.0,0.00027237,2]
[394016611,1763191838931,-500.0,0.00027237,2]
[394016612,1763191838940,-500.0,0.00027237,2]
[394016613,1763191838949,-500.0,0.00027237,2]
[394016614,1763191838958,-5000.0,0.000275,30]
[394016615,1763191838968,-360.0,0.00027696,2]
[394016616,1763191838978,-734.22771344,0.00027785,5]
[394016617,1763191838987,-390.48259364,0.00027785,5]
[394016618,1763191838996,-500.0,0.00027785,5]
[394016619,1763191839005,-501.93643937,0.00027785,5]
[394016620,1763191839015,-277.18661652,0.00027839,2]
[394016621,1763191839024,-204.0,0.00028152,2]
[394016622,1763191839033,-576.6516034,0.00028244,2]
[394016623,1763191839042,-587.0,0.00028393,2]
[394016624,1763191839051,-5709.39193214,0.00028477,2]
[394016625,1763191839061,-10399.145241,0.0002901,2]
[394016626,1763191839070,-500.0,0.00029073,5]
[394016627,1763191839079,-500.0,0.00029073,5]
[394016628,1763191839088,-512.30900408,0.00029073,5]
[394016629,1763191839098,-500.0,0.00029073,5]
[394016630,1763191839108,-500.61430866,0.00029073,5]
[394016631,1763191839121,-1000.0,0.00029621,5]
[394016632,1763191839131,-1004.87245007,0.00029621,5]
[394016633,1763191839140,-286.08824652,0.00029686,2]
[394016634,1763191839151,-153.6413186,0.00029686,2]
[394016635,1763191839160,-10000.0,0.0003,2]
[394016636,1763191839169,-150.90369047,0.00030023,2]
[394016637,1763191839179,-286.08824652,0.00030043,17]
[394016638,1763191839189,-231.0,0.00030152,2]
[394016639,1763191839201,-150.90369047,0.00030379,2]
[394016640,1763191839211,-286.08824652,0.000304,32]
[394016641,1763191839220,-150.90369047,0.00030444,20]
[394016642,1763191839229,-400.49007158,0.00030514,2]
[394016643,1763191839239,-286.08824652,0.00030757,48]
[394016644,1763191839248,-284.0,0.00030786,2]
[394016645,1763191839258,-150.90369047,0.00030805,20]
[394016646,1763191839268,-150.90369047,0.00030866,38]
[394016647,1763191839277,-153.6413186,0.00030936,56]
[394016648,1763191839286,-286.08824652,0.00031115,63]
[394016649,1763191839296,-150.90369047,0.00031231,38]
[394016650,1763191839305,-150.90369047,0.00031287,56]
[394016651,1763191839315,-722.44109687,0.00031371,2]
[394016652,1763191839325,-306.40668607,0.00031371,2]
[394016653,1763191839335,-489.67163487,0.00031371,2]
[394016654,1763191839344,-426.55449662,0.00031371,2]
[394016655,1763191839354,-306.11079948,0.00031371,2]
[394016656,1763191839363,-489.67133897,0.00031371,2]
[394016657,1763191839372,-306.17391632,0.00031371,2]
[394016658,1763191839382,-550.2131754,0.00031371,2]
[394016659,1763191839391,-305.83077339,0.00031371,2]
[394016660,1763191839401,-305.99007575,0.00031371,2]
[394016661,1763191839411,-409.9428683,0.00031371,2]
[394016663,1763191839420,-286.08824652,0.00031472,79]
[394016665,1763191839431,-150.90369047,0.00031658,56]
[394016666,1763191839440,-150.90369047,0.00031708,74]
[394016667,1763191839450,-286.08824652,0.00031829,94]
[394016668,1763191839459,-150.90369047,0.00032084,74]
[394016669,1763191839469,-150.90369047,0.0003213,92]
[394016670,1763191839479,-258.0,0.00032152,2]
[394016671,1763191839488,-153.6413186,0.00032186,110]
[394016672,1763191839498,-286.08824652,0.00032186,110]
[394016673,1763191839507,-150.90369047,0.0003251,92]
[394016674,1763191839517,-748.1056382,0.00032605,2]
[394016675,1763191839532,-195.5553178,0.00032868,60]
[394016676,1763191839553,-250.99999639,0.00032877,7]
[394016677,1763191839567,-150.90369047,0.00032937,110]
[394016678,1763191839578,-16840.23947137,0.0003295,2]
[394016679,1763191839588,-167.968376,0.00033165,2]
[394016680,1763191839599,-223.872892,0.000332,117]
[394016681,1763191839609,-306.78224834,0.00033218,2]
[394016682,1763191839621,-307.16551633,0.00033231,3]
[394016683,1763191839630,-853.94143334,0.00033231,3]
[394016684,1763191839641,-274.04742542,0.00034152,120]
[394016685,1763191839651,-5000.0,0.00034398,2]
[394016686,1763191839660,-164.0,0.00035,120]
[394016687,1763191839672,-204.02394866,0.00035,2]
[394016688,1763191839683,-209.0,0.00035,120]
[394016689,1763191839692,-500.0,0.00035258,20]
[394016690,1763191839701,-154.27,0.00036162,60]
[394016691,1763191839711,-151.37,0.00036162,60]
[394016692,1763191839720,-154.26,0.00036165,60]
[394016693,1763191839729,-154.27,0.00036262,60]
[394016694,1763191839738,-151.37,0.00036262,60]
[394016695,1763191839747,-154.26,0.00036265,60]
[394016697,1763191839756,-160.0,0.000363,7]
[394016700,1763191839766,-985.11466805,0.00036347,3]
[394016702,1763191839775,-500.0,0.00036356,20]
[394016704,1763191839784,-500.0,0.00036357,2]
[394016706,1763191839793,-500.0,0.00036357,2]
[394016708,1763191839802,-500.0,0.00036357,2]
[394016709,1763191839811,-500.0,0.00036357,2]
[394016711,1763191839821,-500.0,0.00036357,2]
[394016714,1763191839830,-500.0,0.00036357,2]
[394016716,1763191839839,-500.0,0.00036357,2]
[394016717,1763191839848,-500.0,0.00036357,2]
[394016719,1763191839858,-500.0,0.00036357,2]
[394016722,1763191839867,-500.0,0.00036357,2]
[394016724,1763191839876,-500.0,0.00036357,2]
[394016726,1763191839886,-560.17378711,0.00036357,2]
[394016728,1763191839895,-500.0,0.00036357,20]
[394016730,1763191839904,-154.27,0.00036362,60]
[394016732,1763191839914,-151.37,0.00036362,60]
[394016734,1763191839923,-500.0,0.00036457,20]
[394016735,1763191839932,-500.0,0.00036458,20]
[394016737,1763191839941,-639.73,0.00036458,2]
[394016739,1763191839951,-500.0,0.00036458,20]
[394016741,1763191839960,-722.44109687,0.00036461,2]
[394016744,1763191839970,-306.40668607,0.00036461,2]
[394016745,1763191839979,-489.67163487,0.00036461,2]
[394016748,1763191839988,-426.55449662,0.00036461,2]
[394016750,1763191839997,-306.11079948,0.00036461,2]
[394016752,1763191840006,-489.67133897,0.00036461,2]
[394016754,1763191840015,-306.17391632,0.00036461,2]
[394016756,1763191840025,-550.2131754,0.00036461,2]
[394016758,1763191840034,-244.18146909,0.00036461,2]
[394016760,1763191840042,-305.83077339,0.00036461,2]
[394016762,1763191840052,-305.99007575,0.00036461,2]
[394016764,1763191840061,-210.380234,0.00036461,2]
[394016766,1763191840070,-409.9428683,0.00036461,2]
[394016768,1763191840079,-154.27,0.00036462,60]
[394016770,1763191840088,-151.37,0.00036462,60]
[394016772,1763191840097,-154.27,0.00036562,60]
[394016774,1763191840106,-151.37,0.00036562,60]
[394016776,1763191840119,-154.27,0.00036662,60]
[394016777,1763191840128,-151.37,0.00036662,60]
[394016780,1763191840138,-349.04721171,0.00036681,2]
[394016782,1763191840146,-628.28498107,0.00036681,2]
[394016784,1763191840157,-154.27292013,0.00036762,60]
[394016786,1763191840166,-151.37,0.00036762,60]
[394016788,1763191840175,-151.37,0.00036862,60]
[394016790,1763191840186,-151.37,0.00036962,60]
[394016792,1763191840195,-151.37,0.00037062,60]
[394016794,1763191840204,-300.0,0.00037083,30]
[394016796,1763191840213,-300.0,0.00037083,30]
[394016798,1763191840224,-151.37,0.00037162,60]
[394016800,1763191840233,-151.37,0.00037262,60]
[394016802,1763191840244,-151.37,0.00037362,60]
[394016803,1763191840253,-151.37,0.00037462,60]
[394016806,1763191840262,-400000.0,0.000375,7]
[394016808,1763191840271,-400000.0,0.000375,7]
[394016809,1763191840281,-297.66,0.00037532,3]
[394016811,1763191840290,-892.98,0.00037532,3]
[394016814,1763191840299,-1970.2293361,0.00037532,3]
[394016816,1763191840309,-16746.9493569,0.00037542,3]
[394016818,1763191840319,-500.0,0.00037551,20]
[394016820,1763191840328,-500.0,0.00037551,20]
[394016822,1763191840337,-500.0,0.00037551,20]
[394016824,1763191840346,-500.0,0.00037551,20]
[394016826,1763191840357,-500.0,0.00037551,20]
[394016828,1763191840366,-500.0,0.00037551,20]
[394016830,1763191840375,-500.0,0.00037551,20]
[394016832,1763191840384,-500.0,0.00037551,20]
[394016834,1763191840393,-500.0,0.00037551,20]
[394016836,1763191840403,-500.0,0.00037551,20]
[394016838,1763191840412,-500.0,0.00037551,20]
[394016840,1763191840421,-500.0,0.00037551,20]
[394016842,1763191840431,-500.0,0.00037551,20]
[394016844,1763191840440,-500.0,0.00037551,20]
[394016846,1763191840449,-500.0,0.00037551,20]
[394016848,1763191840461,-522.04919764,0.00037551,20]
[394016850,1763191840470,-182.07811692,0.00037551,7]
[394016852,1763191840479,-530426.19612771,0.00037552,2]
[394016882,1763191843278,-5709.39193214,0.00032881,2]
[394016883,1763191843287,-11501.95063096,0.00037552,2]
[394016889,1763192025568,204.11,0.00038906,10]
[394016891,1763192214421,100000.009,0.00038899,10]
[394016892,1763192285289,100000.0,0.00038899,10]
[394016894,1763192938377,4204.0,0.00038899,30]
[394016895,1763192989076,723.885624,0.00038899,10]
[394016937,1763193032000,-500.0,0.00024898,2]
[394016939,1763193032011,-243.129998,0.00024898,2]
[394016942,1763193032025,-256.870002,0.00024898,2]
[394016944,1763193032035,-51.22929799,0.00024898,2]
[394016946,1763193032048,-149.0938695,0.00024898,2]
[394016949,1763193032059,-277.24713633,0.00024997,2]
[394016951,1763193032072,-222.75286367,0.00024997,2]
[394016953,1763193032082,-500.0,0.00024997,2]
[394016955,1763193032093,-441.55283455,0.00025,2]
[394016976,1763193037854,-5826.12957522,0.00025,2]
[394016977,1763193037864,-288.3655581,0.000256,2]
[394016978,1763193037874,-503.04740363,0.000256,2]
[394016979,1763193037883,-502.35986167,0.000257,2]
[394016980,1763193037892,-500.0,0.00025983,2]
[394016981,1763193037903,-1354.03820132,0.00026282,2]
[394016982,1763193037913,-499.61411768,0.00026531,2]
[394016983,1763193037922,-500.0,0.00026881,2]
[394016984,1763193037931,-215.65877765,0.00026881,2]
[394016985,1763193037941,-174.88232512,0.00027828,5]
[394016986,1763193037951,-623.79423714,0.00029009,20]
[394016987,1763193037960,-359.84422222,0.0002907,2]
[394016988,1763193037971,-1354.03820132,0.00029675,2]
[394016989,1763193037980,-286.13270498,0.00031758,2]
[394016990,1763193037989,-150.90369044,0.00032014,30]
[394016991,1763193037999,-1354.03820132,0.00033068,2]
[394016992,1763193038008,-500.0,0.000331,7]
[394016993,1763193038018,-500.0,0.0003351,7]
[394016994,1763193038028,-500.0,0.000341,7]
[394016996,1763193038038,-324.09,0.0003451,7]
[394016998,1763193038047,-500.0,0.000351,7]
[394017000,1763193038056,-503.7769313,0.00035616,5]
[394017002,1763193038065,-1354.03820132,0.00036461,2]
[394017003,1763193038074,-217.37165669,0.00036681,2]
[394017004,1763193038084,-391.26898204,0.00036681,2]
[394017005,1763193038093,-429.22709622,0.00036681,2]
[394017006,1763193038103,-293.06341667,0.00037399,2]
[394017007,1763193038115,-314.4785267,0.00037399,2]
[394017008,1763193038127,-2960.82801427,0.00037399,2]
[394017009,1763193038136,-500.0,0.00037497,7]
[394017010,1763193038146,-500.0,0.00037497,7]
[394017011,1763193038155,-916.3055368,0.00037499,2]
[394017012,1763193038165,-4641.06546735,0.00037499,2]
[394017013,1763193038176,-889.62,0.00037499,2]
[394017019,1763193040067,-3912.19936075,0.00037499,2]
[394017020,1763193040076,-458.1527684,0.00037499,2]
[394017021,1763193040086,-223.48185729,0.00037532,3]
[394017022,1763193040097,-556.16601356,0.00037541,2]
[394017023,1763193040109,-56.91398644,0.00037541,2]
[394017024,1763193040119,-613.08,0.00037541,2]
[394017025,1763193040129,-194.72792766,0.0003755,20]
[394017026,1763193040138,-201.93286099,0.0003755,20]
[394017027,1763193040147,-209.40437684,0.0003755,20]
[394017028,1763193040157,-217.15233878,0.0003755,20]
[394017029,1763193040166,-225.18697532,0.0003755,20]
[394017030,1763193040176,-233.51889341,0.0003755,20]
[394017031,1763193040184,-242.15909246,0.0003755,20]
[394017032,1763193040192,-251.11897888,0.0003755,20]
[394017033,1763193040202,-260.4103811,0.0003755,20]
[394017034,1763193040212,-270.0455652,0.0003755,20]
[394017035,1763193040221,-280.03725112,0.0003755,20]
[394017036,1763193040230,-290.39862941,0.0003755,20]
[394017037,1763193040240,-301.1433787,0.0003755,20]
[394017038,1763193040249,-613.08,0.00037551,2]
[394017039,1763193040258,-613.08,0.00037551,2]
[394017040,1763193040268,-613.08,0.00037551,2]
[394017041,1763193040277,-128.21177346,0.00037551,2]
[394017048,1763193045063,-463.36695483,0.00037551,2]
[394017056,1763193618997,151.0,0.00038915,30]
[394017057,1763193619681,156.587,0.00038915,30]
[394017058,1763193620388,162.380719,0.00038915,30]
[394017059,1763193620999,168.3888056,0.00038915,30]
[394017060,1763193621665,174.61919141,0.00038915,30]
[394017061,1763193622325,181.08010149,0.00038915,30]
[394017062,1763193622928,187.78006525,0.00038915,30]
[394017063,1763193623584,194.72792766,0.00038915,30]
[394017064,1763193624210,201.93286099,0.00038915,30]
[394017065,1763193624858,209.40437684,0.00038915,30]
[394017066,1763193625509,217.15233878,0.00038915,30]
[394017067,1763193626294,225.18697532,0.00038915,30]
[394017068,1763193626802,233.51889341,0.00038915,30]
[394017069,1763193627430,242.15909246,0.00038915,30]
[394017070,1763193628133,242.15909246,0.00038915,30]
[394017071,1763193660140,165.0,0.000328,120]
[394017100,1763194232257,-219.0,0.00025227,2]
[394017102,1763194232267,-150.0,0.00025327,2]
[394017104,1763194232276,-1008.38069156,0.00026282,2]
[394017106,1763194232286,-221.85753058,0.00027327,2]
[394017108,1763194232296,-300.0,0.00029296,2]
[394017110,1763194232306,-257.0,0.00029296,2]
[394017112,1763194232316,-8822.621758,0.00029297,2]
[394017114,1763194232325,-1008.38069156,0.00029675,2]
[394017116,1763194232335,-11.05068725,0.00030523,2]
[394017149,1763194240386,-1995.70086193,0.00026282,2]
[394017151,1763194240396,-1995.70086193,0.00028544,2]
[394017153,1763194240407,-1262.72374046,0.00030523,2]
[394017155,1763194240417,-1273.77442771,0.00030576,4]
[394017157,1763194240427,-1273.77442771,0.00030628,6]
[394017159,1763194240436,-1273.77442771,0.00030681,8]
[394017161,1763194240446,-1273.77442771,0.00030733,10]
[394017163,1763194240456,-1273.77442771,0.00030786,13]
[394017165,1763194240466,-1273.77442771,0.00030838,15]
[394017167,1763194240475,-1273.77442771,0.00030891,17]
[394017170,1763194240485,-1273.77442771,0.00030943,19]
[394017172,1763194240495,-1273.77442771,0.00030996,21]
[394017174,1763194240505,-1273.77442771,0.00031048,24]
[394017176,1763194240515,-1273.77442771,0.00031101,26]
[394017178,1763194240525,-1273.77442771,0.00031153,28]
[394017180,1763194240535,-1273.77442771,0.00031205,30]
[394017182,1763194240544,-3122.3237129,0.0003121,2]
[394017184,1763194240554,-294.4577546,0.00031257,2]
[394017186,1763194240563,-376.30452309,0.00031257,2]
[394017188,1763194240573,-221.21090891,0.00031257,2]
[394017190,1763194240583,-1273.77442771,0.00031258,32]
[394017192,1763194240593,-1273.77442771,0.0003131,35]
[394017194,1763194240602,-1273.77442771,0.00031363,37]
[394017196,1763194240612,-1273.77442771,0.00031415,39]
[394017199,1763194240622,-1273.77442771,0.00031468,41]
[394017201,1763194240632,-1273.77442771,0.0003152,43]
[394017203,1763194240642,-1273.77442771,0.00031573,46]
[394017205,1763194240653,-420.0,0.00031597,2]
[394017207,1763194240663,-1273.77442771,0.00031625,48]
[394017209,1763194240673,-1273.77442771,0.00031678,50]
[394017211,1763194240682,-1273.77442771,0.0003173,52]
[394017213,1763194240692,-1273.77442771,0.00031782,54]
[394017215,1763194240702,-1273.77442771,0.00031835,57]
[394017217,1763194240711,-1273.77442771,0.00031887,59]
[394017219,1763194240721,-1273.77442771,0.0003194,61]
[394017221,1763194240730,-1273.77442771,0.00031992,63]
[394017223,1763194240740,-164.39802261,0.00032,60]
[394017225,1763194240750,-1273.77442771,0.00032045,65]
[394017227,1763194240760,-1273.77442771,0.00032097,68]
[394017229,1763194240770,-1273.77442771,0.0003215,70]
[394017231,1763194240779,-1273.77442771,0.00032202,72]
[394017233,1763194240789,-1273.77442771,0.00032255,74]
[394017235,1763194240798,-1273.77442771,0.00032307,76]
[394017237,1763194240808,-403.17539025,0.00032359,79]
[394017266,1763194245914,-1995.70086193,0.00030806,2]
[394017267,1763194245924,-870.59903746,0.00032359,79]
[394017268,1763194245934,-1273.77442771,0.00032412,81]
[394017269,1763194245943,-1273.77442771,0.00032464,83]
[394017270,1763194245952,-237.02704518,0.00032517,85]
[394017271,1763194245964,-1036.74738253,0.00032517,85]
[394017272,1763194245974,-1273.77442771,0.00032569,87]
[394017273,1763194245983,-1273.77442771,0.00032622,90]
[394017274,1763194245995,-1273.77442771,0.00032674,92]
[394017275,1763194246006,-1273.77442771,0.00032727,94]
[394017276,1763194246015,-1273.77442771,0.00032779,96]
[394017277,1763194246025,-165.0,0.000328,90]
[394017278,1763194246035,-1273.77442771,0.00032832,98]
[394017279,1763194246045,-1273.77442771,0.00032884,101]
[394017280,1763194246054,-44.3784235,0.00032937,103]
[394017283,1763194246583,-150.0,0.0002589,2]
[394017284,1763194246593,-917.84519863,0.00032937,103]
[394017285,1763194246720,-177.0,0.0002789,2]
[394017286,1763194246729,-311.55080558,0.00032937,103]
[394017287,1763194246738,-1273.77442771,0.00032989,105]
[394017288,1763194246747,-1273.77442771,0.00033041,107]
[394017289,1763194246757,-1008.38069156,0.00033068,2]
[394017290,1763194246766,-1995.70086193,0.00033068,2]
[394017291,1763194246776,-1273.77442771,0.00033094,110]
[394017292,1763194246785,-93.01612071,0.00033105,2]
[394017294,1763194506518,414.0,0.00038932,30]
[394017295,1763194506554,151.0,0.00038932,30]
[394017296,1763194506665,250.0,0.00038932,30]
[394017297,1763194506853,250.0,0.00038932,30]
[394017298,1763194507157,154.87969335,0.00038932,30]
[394017299,1763194512827,-1108.77203774,0.00025,2]
[394017300,1763194592228,-5000.0,0.0002073,2]
[394017301,1763194592250,-150.0,0.00020835,2]
[394017302,1763194592271,-177.0,0.00022835,2]
[394017303,1763194592291,-300.0,0.00024502,2]
[394017304,1763194592311,-5000.0,0.00024503,2]
[394017305,1763194592330,-5000.0,0.0002475,2]
[394017306,1763194592350,-204.0,0.00024835,2]
[394017307,1763194592370,-1703.22796226,0.00025,2]
[394017308,1763194595482,5000.0,0.00020428,2]
[394017309,1763194603494,465.77203774,0.00026,2]
[394017312,1763194801780,5000.0,0.00020428,2]
[394017313,1763194809932,4837.1106492,0.00020428,2]
[394017314,1763194825359,5000.0,0.00020428,2]
[394017315,1763194847584,162.8993508,0.00020428,2]
[394017316,1763194847608,2079.32520504,0.00020428,2]
[394017317,1763194990199,5000.0,0.00020428,2]
[394017319,1763195012935,5000.0,0.00020428,2]
[394017320,1763195035106,1173.88645981,0.00020428,2]
[394017321,1763195114588,350.71695478,0.00032878,120]
[394017325,1763195226985,298.0,0.00020039,2]
[394017326,1763195249092,-150.0,0.00020867,2]
[394017327,1763195249112,-157.46832248,0.000209,2]
[394017328,1763195249131,-145.60415831,0.00020939,2]
[394017331,1763195311168,452.99999986,0.0002,120]
[394017360,1763195432449,-177.0,0.00022867,2]
[394017362,1763195432461,-1211.51188635,0.00024,2]
[394017526,1763195440598,-4455.02387188,0.00024,2]
[394017539,1763195443978,-509.69747996,0.00024,2]
[394017546,1763195512999,150.0,0.00019448,2]
[394017547,1763195513405,40.809384,0.00021217,2]
[394017549,1763195585008,150.0,0.00019333,2]
[394017550,1763195642792,1998.66,0.00032878,120]
[394017551,1763195652324,150.0,0.00019297,2]
[394017552,1763195716759,150.0,0.00019354,2]
[394017553,1763195780995,150.0,0.00019336,2]
[394017554,1763195846153,150.0,0.00019421,2]
[394017555,1763195879030,4521.55212331,0.00020427,2]
[394017556,1763195894452,556.682574,0.00020427,2]
[394017557,1763195912064,150.0,0.00019753,2]
[394017558,1763195977536,150.0,0.00019635,2]
[394017559,1763195980909,210.13792,0.00013699,2]
[394017560,1763195981125,210.13792,0.00020187,2]